Cogmind - Beta 17 @@@ ROGUE MODE // 2026.08.16 @ 19:48:17 Player: Marc Result: Self-destructed Performance ------------- Evolutions (1) 500 Regions Visited (2) 400 Robots Destroyed (6) 30 Value Destroyed (136) 136 Prototype IDs (0) 0 Alien Tech Used (0) 0 Bonus (200) 200 TOTAL SCORE: 1266 Bonus ------- Pacifist 200 Cogmind --------- Core Integrity 378/400 Matter 189/300 Energy 125/125 System Corruption 0% Temperature Cool (0) Movement Rolling (135) Ox3 Location -9/Materials Parts ------- > --- POWER (1) -------- Light Ion Engine > --- PROPULSION (2) --- Wheel Compact Wheel > --- UTILITY (4) ------ Huge Storage Unit > --- WEAPON (2) ------- Assault Rifle Light Assault Rifle > --- INVENTORY (25) --- Ion Engine Wheel Wheel Wheel Wheel Small Storage Unit Structural Scanner ECM Suite Light Assault Rifle Peak State ------------ > --- POWER ------------ Light Ion Engine > --- PROPULSION ------- Aluminum Leg Aluminum Leg > --- UTILITY ---------- Small Storage Unit Huge Storage Unit > --- WEAPON ----------- Assault Rifle Light Assault Rifle > --- INVENTORY -------- Ion Engine Wheel Compact Wheel Structural Scanner ECM Suite Light Assault Rifle Grenade Launcher [Rating: 7] Favorites ----------- Power Light Ion Engine Engine Light Ion Engine Propulsion Aluminum Leg Leg Aluminum Leg Wheel Wheel Utility Small Storage Unit Storage Small Storage Unit Weapon Light Assault Rifle Ballistic Gun Light Assault Rifle Launcher Grenade Launcher Build | -11 -10 -9 ------- Run | Yrd Mat Mat Slots Evolved 2 | . . 2 Power . | . . . Propulsion . | . . . Utility 2 | . . 2 Weapon . | . . . Parts Attached 6 | . 4 2 Power . | . . . Engine . | . . . Core . | . . . Reactor . | . . . Propulsion 2 | . 2 . Treads . | . . . Leg . | . . . Wheel 2 | . 2 . Hover . | . . . Flight . | . . . Utility 1 | . 1 . Device . | . . . Storage 1 | . 1 . Processor . | . . . Hackware . | . . . Protection . | . . . Artifact . | . . . Weapon 3 | . 1 2 Energy Gun . | . . . Energy Cannon . | . . . Ballistic Gun 2 | . 1 1 Ballistic Cannon . | . . . Launcher 1 | . . 1 Special Weapon . | . . . Impact Weapon . | . . . Slashing Weapon . | . . . Piercing Weapon . | . . . Special Melee Weapon . | . . . Unidentified Prototypes . | . . . Parts Lost 1 | . . 1 Power . | . . . Propulsion . | . . . Utility . | . . . Weapon 1 | . . 1 Highest Loss Streak 1 | . . 1 To Critical Strikes . | . . . Average Backups 8 | . 7 10 Power 1 | . 1 1 Propulsion 3 | . 2 4 Utility 1 | . 1 3 Weapon 1 | . 1 2 Tool/Special . | . . . Unused Backups 15 | . 7 8 Power 2 | . 1 1 Propulsion 8 | . 4 4 Utility 3 | . . 3 Weapon 2 | . 2 . Tool/Special . | . . . Average Slot Usage (%) 81 | . 85 66 Engine 13 | . 14 11 Leg 15 | . 18 . Wheel 11 | . 9 22 Storage 13 | . 14 11 Ballistic Gun 26 | . 28 20 Peak Build Rating 7 | . 7 7 Average Rating 6 | . 6 6 On Entrance 6 | 6 6 7 Avg Prop Armor Cover (%) . | . . . Naked Turns . | . . . Heaviest Build 88 | 10 86 88 Greatest Support 26 | 20 26 26 Greatest Overweight (x) 3 | . 3 3 Average Overweight (x) 1 | . . 3 Largest Inventory Capacity 25 | . 25 25 Average Capacity 15 | . 13 25 Most Carried 10 | . 10 10 Average Carried 8 | . 7 9 Final Capacity 25 | 8 25 25 Final Carried 10 | 6 10 9 Class Distribution -------------------- 100% | Mutant Dominant Class ---------------- Mutant | -10/Materials Mutant | -9/Materials Resources | -11 -10 -9 ----------- Run | Yrd Mat Mat Matter Collected 200 | 189 11 . Remotely . | . . . Salvage Created 80 | . . 80 Parts 5 | . . 5 Haulers Intercepted . | . . . Recyclers Shooed . | . . . Parts Field Recycled . | . . . Retrieved Matter . | . . . Parts Self-Destructed . | . . . Prevented . | . . . Parts Restored . | . . . Kills | -11 -10 -9 ------- Run | Yrd Mat Mat Combat Hostiles Destroyed 3 | . . 3 AOE 3 | . . 3 Classes Destroyed 3 | . . 3 Worker 1 | . . 1 Builder 2 | . . 2 Grunt 3 | . . 3 Best Kill Streak 6 | . . 6 Combat Bots Only 3 | . . 3 Max Kills in Single Turn 5 | . . 5 Gunslinging . | . . . Exploded 2 | . . 2 Melee . | . . . Uniques/NPCs Destroyed . | . . . Combat | -11 -10 -9 -------- Run | Yrd Mat Mat Hostile Shots Fired 19 | . . 19 Missed 7 | . . 7 Hits 12 | . . 12 Projectile 12 | . . 12 Damage Taken 154 | . . 154 Core 22 | . . 22 Absorbed by Shields . | . . . Core Remaining (%) 100 | 100 100 . Volleys Fired 5 | . . 5 Largest 2 | . . 2 Hottest 50 | . . 50 Shots Fired 10 | . . 10 Gun 6 | . . 6 Cannon . | . . . Launcher 4 | . . 4 Special . | . . . Kinetic 6 | . . 6 Thermal . | . . . Explosive 4 | . . 4 Electromagnetic . | . . . Robot Hit Streak . | . . . Robot Miss Streak . | . . . Penetration Max . | . . . Secondary Targets . | . . . Shots Hit Robots . | . . . Core Hits 9 | . . 9 Critical Kills . | . . . Critical Parts Destroyed . | . . . Critical Strikes . | . . . Melee Attacks . | . . . Impact . | . . . Slashing . | . . . Piercing . | . . . Sneak Attacks . | . . . Combat Hostiles . | . . . Follow-up Attacks . | . . . Damage Inflicted 378 | . . 378 Guns . | . . . Cannons . | . . . Explosions 378 | . . 378 Melee . | . . . Ramming . | . . . Kinetic . | . . . Thermal . | . . . Explosive 378 | . . 378 Electromagnetic . | . . . Impact . | . . . Slashing . | . . . Piercing . | . . . Highest Corruption . | . . . Average Corruption . | . . . Corruption Purged . | . . . Corruption Blocked . | . . . Overload Shots . | . . . Overflow Damage 8 | . . 8 Projectiles . | . . . Explosions 8 | . . 8 Melee . | . . . Knockbacks . | . . . Impact . | . . . Kinetic . | . . . Secondary . | . . . Self-Inflicted Damage . | . . . Shots . | . . . Rammed . | . . . Targets Rammed . | . . . Kicked . | . . . Crushed . | . . . Highest Temperature 2 | . . 2 Average Temperature 1 | . . 1 Received Heat Transfer 60 | . . 60 Siege Activations . | . . . Martial Activations . | . . . Shielding Activations . | . . . Robots Disrupted . | . . . Combat Hostiles . | . . . Robots Corrupted . | . . . Combat Hostiles . | . . . Parts Fried . | . . . Impact Corruptions . | . . . Robots Melted . | . . . Combat Hostiles . | . . . Parts Melted . | . . . Heat Transferred . | . . . Parts Sabotaged . | . . . Parts Stolen . | . . . Parts Stripped . | . . . Power Chain Reactions . | . . . Alert | -11 -10 -9 ------- Run | Yrd Mat Mat Maximum Alert Level . | . . . Low Security (%) 100 | . 100 100 Level 1 . | . . . Level 2 . | . . . Level 3 . | . . . Level 4 . | . . . Level 5 . | . . . High Security . | . . . Max Security . | . . . Peak Influence 90 | . . 90 Initial . | . . . Average 3 | . . 18 Influence Increases 100 | . . 100 Destroy 0b10 Robot/C 60 | . . 60 Destroy 0b10 Robot/NC 15 | . . 15 Destroy Leader 10 | . . 10 Disable Machine 15 | . . 15 Influence Decreases 20 | . . 20 Time Decay 10 | . . 10 Lost Part 10 | . . 10 Squads Dispatched 1 | . . 1 Investigation . | . . . Extermination . | . . . Reinforcement 1 | . . 1 Assault . | . . . Garrison . | . . . Intercept . | . . . Searches Triggered . | . . . Construction Impeded 1 | . . 1 Haulers Reinforced . | . . . Active Scanning Responses . | . . . Cargo Convoy Interrupts . | . . . Stealth | -11 -10 -9 --------- Run | Yrd Mat Mat Distress Signals 1 | . . 1 Communications Jammed . | . . . Distress Signals . | . . . Times Spotted 11 | . 3 8 Peak Tracking Total 5 | . 2 5 Tactical Retreats . | . . . Traps | -11 -10 -9 ------- Run | Yrd Mat Mat Traps Triggered . | . . . Indirectly . | . . . Trap Hack Attempts . | . . . Triggered . | . . . Disarmed . | . . . Reprogrammed . | . . . Reused . | . . . Traps Extracted . | . . . Installed . | . . . Triggered . | . . . Machines | -11 -10 -9 ---------- Run | Yrd Mat Mat Machines Disabled 1 | . . 1 Max in Single Turn 1 | . . 1 Machines Repaired . | . . . Machines Dismantled . | . . . Machines Sabotaged . | . . . Overloaded Fab Kills . | . . . Hacking | -11 -10 -9 --------- Run | Yrd Mat Mat Machines Accessed 1 | . 1 . Terminals 1 | . 1 . Fabricators . | . . . Repair Stations . | . . . Recycling Units . | . . . Scanalyzers . | . . . Garrison Access . | . . . Total Hacks 3 | . 3 . Successful 1 | . 1 . Failed 2 | . 2 . Catastrophic . | . . . Database Lockouts . | . . . Manual 3 | . 3 . Terminals 3 | . 3 . Fabricators . | . . . Repair Stations . | . . . Recycling Units . | . . . Scanalyzers . | . . . Garrison Access . | . . . Terminal Hacks . | . . . Fabricator Hacks . | . . . Repair Station Hacks . | . . . Recycling Unit Hacks . | . . . Scanalyzer . | . . . Garrison Access Hacks . | . . . Unauthorized Hacks 1 | . 1 . Terminals 1 | . 1 . Botnet 1 | . 1 . Fabricators . | . . . Repair Stations . | . . . Recycling Units . | . . . Scanalyzers . | . . . Garrison Access . | . . . Data Cores Recovered . | . . . Used . | . . . Hacking Detections 1 | . 1 . Full Trace Events . | . . . Feedback Events . | . . . Feedback Blocked . | . . . Robot Schematics Acquired . | . . . Robots Built . | . . . Authchips . | . . . Time . | . . . Total Robot Build Rating . | . . . Part Schematics Acquired . | . . . Parts Built . | . . . Authchips . | . . . Time . | . . . Total Part Build Rating . | . . . Part Studies Acquired . | . . . Parts Repaired . | . . . Time . | . . . Parts Recycled . | . . . Recycled Matter . | . . . Retrieved Matter . | . . . Retrieved Components . | . . . Parts Scanalyzed . | . . . Part Schematics Acquired . | . . . Parts Damaged . | . . . Bothacking | -11 -10 -9 ------------ Run | Yrd Mat Mat Used RIF Installer . | . . . Robots Hacked . | . . . Non-combat . | . . . Combat . | . . . Robot Hacks Applied . | . . . Relay Couplers Released . | . . . Fabnet Peak Effective % . | . . . Robots Rewired . | . . . Allies Hacked . | . . . Hacks Repelled . | . . . Allies | -11 -10 -9 -------- Run | Yrd Mat Mat Total Allies . | . . . Largest Group . | . . . Highest-Rated Group . | . . . Highest-Rated Ally . | . . . Total Orders . | . . . Ally Attacks . | . . . Total Damage . | . . . Kills . | . . . Allies Corrupted . | . . . Allies Melted . | . . . Intel | -11 -10 -9 ------- Run | Yrd Mat Mat Active Infowar (turns) . | . . . Robot Analysis Total . | . . . Derelict Logs Recovered . | . . . Drone Launches . | . . . Drone Recoveries . | . . . Exploration | -11 -10 -9 ------------- Run | Yrd Mat Mat Turns Passed 402 | . 332 70 Spaces Moved 293 | 1 253 39 Core . | . . . Treads . | . . . Legs 176 | 1 175 . Wheels 117 | . 78 39 Hover . | . . . Flight . | . . . Fastest Speed 120 | 120 120 135 Average Speed 125 | 120 124 135 Slowest Speed 135 | 120 135 135 Overloaded Moves . | . . . Propulsion Burnouts . | . . . Robots Hopped . | . . . Potential Cave-ins . | . . . Cave-ins Triggered . | . . . Exploration Rate (%) 20 | 1 53 8 Regions Visited 2 Branch Regions . Pre-discovered Areas . | . . . Known Exits Taken . | . . . Unknown Exits Taken 2 | 1 1 . Scrap Searched . | . . . Spaces Dug . | . . . Terrain Destroyed . | . . . Melee . | . . . Projectile . | . . . AOE . | . . . Terrain Rammed . | . . . Walls Destroyed . | . . . Machines Disabled . | . . . Actions | -11 -10 -9 --------- Run | Yrd Mat Mat Total 318 | . 272 46 Wait . | . . . Move 291 | . 252 39 Hop . | . . . Pick Up 9 | . 9 . Fast Attach . | . . . Attach 2 | . 1 1 Detach 1 | . 1 . Swap 4 | . 3 1 Drop 6 | . 6 . Fire 5 | . . 5 Melee . | . . . Ram . | . . . Kick . | . . . Crush . | . . . Escape Stasis . | . . . Rewire . | . . . Trap . | . . . Miscellaneous . | . . . Route ------- -11/Scrapyard -10/Materials -9/Materials History --------- Turn | Location | Event 1 | -11/Scrapyard | Discovered new exit (range 0) 1 | -11/Scrapyard | Entered Materials 174 | -10/Materials | Discovered new exit (range 3) 303 | -10/Materials | Build established: Mutant 333 | -10/Materials | Entered another Materials area 333 | -9/Materials | Evolved 2 slots: Utility x2 403 | -9/Materials | Self-destructed Last Messages --------------- local area. 00384_ U-05 Engineer sends out distress signal. 00386_ K-01 Serf collects debris. 00387_ U-05 Engineer destroyed. 00387_ Destroyed Heat Sink. 00387_ G-47 Trooper destroyed. 00387_ U-05 Engineer destroyed. 00387_ G-34 Mercenary destroyed. 00387_ K-01 Serf destroyed. 00390_ Atomic Centrifuge disabled. 00392_ U-05 Engineer lays Concrete. 00392_ K-01 Serf collects debris. 00393_ G-34 Mercenary destroyed. 00394_ U-05 Engineer lays Concrete. 00395_ K-01 Serf collects debris. 00396_ U-05 Engineer lays Concrete. 00397_ Grenade Launcher destroyed. 00397_ U-05 Engineer lays Concrete. 00402_ K-01 Serf collects debris. 00402_ U-05 Engineer lays Concrete. Map ----- +----------------------------------------------------+ | ???????????????????????????????????????? | | ???????????????????????????????????????? | | ???????????????????????????????????????? | | ???????????????????????????????????????? | | ???????????????????????????????????????? | | ???????????????????????????????????????? | | ???????????????????????????????????????? | | ???????????????????????????????????????? | | ???????????????????????????????????????? | | ???????????????????????????????????????? | | ???????????????????????????????????????? | | ??????????????????? ???????????????????? | | ????????? ???????? #???????????????????? | | ????????? ???????s#??? ??????????????? | | ????????? s#######Y#### ????????????? | | ???????? s ????????????? | | ???????? ????????????? | | ????????? ![ s % ?????????????? | | ???????? ![ = "???"??????????? | | ???????? ![ % """ "??????????? | | ????????? u""" """????????? | | ???????? ????????? | | ???????# """ ????????? | | ??#? ## """ ???????? | | ??#! """ ????????? | | ??#! """ @ #?????????????? | | ???#! """ #?????????????? | | ??????# #?????????????? | | ??????# k #?????????????? | | ??????###+####### #?????????????? | | ????????????????# #?????????????? | | ????????????????# """ #?????????????? | | ????????????????# """ +?????????????? | | ????????????????# """ #?????????????? | | ????????????????# #?????????????? | | ????????????????# #?????????????? | | ????????????????# """ #?????????????? | | ????????????????# """ #?????????????? | | ????????????????# """ #?????????????? | | ????????????????# #?????????????? | | ????????????????# #?????????????? | | ????????????????# """ #?????????????? | | ??????????####### """ #?????????????? | | ??????????# """ #?????????????? | | ??????????# #?????????????? | | ??????????# #?????????????? | | ??????????###########+#####????????????? | | ????????????????# #????????????? | | ????????????????# """ """ #????????????? | | ????????????????# """ """ #????????????? | +----------------------------------------------------+ Best States ------------- Heat Dissipation 28 Energy Generation 10 Energy Capacity 125 Matter Stores 300 Matter Capacity 300 Sight Range 16 Terrain Scan Density 10 Evasion (%) 55 Item Schematics ----------------- None Robot Schematics ------------------ None Fabricated ------------ Nothing Repaired ---------- Nothing Studied --------- None Alien Tech Used ----------------- None Achievements -------------- None Challenges ------------ None Game ------ Seed AblativeSystemDrillbomb Manual? 0 Play Time 00:03:40 Cumulative 26.1 hours Start 2026.08.16 @ 19:43:17 End 2026.08.16 @ 19:48:17 Sessions 1 Manual Loads 0 Difficulty Rogue Special Mode None Game No. 80 Rogue 73 Adventurer 7 Explorer 0 Win Type - Total 0 Types 0/0/0/0/0/0/0/0/0/0 Lore% 29 Gallery% 33 Achievement% 27 Wizard Run 0 Options --------- Layout 0 ASCII 0 Keyboard 0 Movement Mouse Keybinds 0 Fullscreen 1 Font 18/SmallcapsGlow Map View 38x25 Zoom Use 100% Tactical HUD 1 Map Filters NONE Filters NONE Steam 1 RUN: 78e8d61a-effa-482c-9287-9ccdf1eafc2e